bitfinex/quotes_ETHUSD_20260113
["timestamp","ask_amount","ask_price","bid_price","bid_amount"]
[1768328032736,0.002,3186.2,3185.7,0.91093278]
[1768328033237,0.002,3186.2,3185.7,6.88100648]
[1768328033640,0.002,3186.2,3185.8,2.83107566]
[1768328034213,0.002,3186.2,3185.8,3.33486412]
[1768328035721,0.002,3186.2,3185.8,0.50378846]
[1768328037545,0.002,3186.2,3185.9,2.83107566]
[1768328037966,0.002,3186.2,3185.8,3.64270288]
[1768328037967,0.002,3186.4,3186.1,2.83107566]
[1768328038316,0.00080232,3186.5,3186.1,2.83107566]
[1768328038514,0.00080232,3186.5,3186.2,0.28310757]
[1768328038717,0.00080232,3186.5,3185.5,2.83107566]
[1768328039019,2.63003998,3186.5,3185.6,3.13909321]
[1768328039253,0.00080232,3186.5,3185.7,3.13901958]
[1768328039840,0.00080232,3186.5,3186.0,2.83107566]
[1768328041482,0.00080232,3186.5,3186.0,5.96979799]
[1768328041938,0.002,3186.2,3186.0,4.12236244]
[1768328042261,2.62923766,3186.4,3186.0,4.42999926]
[1768328042478,0.00280232,3186.5,3186.1,0.01411617]
[1768328042757,0.00280232,3186.5,3186.1,2.84519183]
[1768328042959,0.00280232,3186.5,3186.1,0.01411617]
[1768328043163,0.00280232,3186.5,3185.8,2.83107566]
[1768328043360,0.00280232,3186.5,3186.0,2.83107566]
[1768328044276,0.00280232,3186.5,3185.9,0.28310757]
[1768328044769,0.00280232,3186.5,3186.0,0.01411661]
[1768328045276,0.00280232,3186.5,3185.9,0.28310757]
[1768328045849,0.00280232,3186.5,3186.0,0.01411661]
[1768328046049,0.00280232,3186.5,3186.1,0.28902893]
[1768328046372,0.00280232,3186.5,3186.2,0.0141137]
[1768328047373,0.002,3186.7,3186.2,2.60717784]
[1768328047789,3.14007053,3186.7,3186.2,2.60717784]
[1768328047987,0.002,3186.7,3186.3,0.76232048]
[1768328048189,0.002,3186.7,3186.3,3.35538563]
[1768328048380,0.002,3186.7,3186.4,2.59306515]
[1768328048587,0.002,3186.7,3186.3,0.76232048]
[1768328049179,0.002,3186.7,3186.3,3.90073901]
[1768328049375,0.002,3186.7,3186.4,0.3900739]
[1768328049897,0.002,3186.7,3186.3,0.76232048]
[1768328050288,0.002,3186.7,3186.3,3.90074459]
[1768328050485,3.13756145,3187.2,3186.3,0.76232048]
[1768328050687,1e-08,3188.0,3187.1,12.20905641]
[1768328050856,2.60007911,3188.7,3187.8,4.72619563]
[1768328051063,3.13597591,3188.8,3187.9,0.246]
[1768328051306,6.27195182,3188.8,3187.9,2.82306515]
[1768328051544,3.13597591,3188.8,3188.0,2.59306515]
[1768328051663,2.60007911,3189.9,3188.6,4.72619563]
[1768328051859,6.27037872,3189.6,3188.4,2.59306515]
[1768328052058,6.27037872,3189.6,3188.1,14.5]
[1768328052059,4.72619563,3189.2,3188.1,2.59306515]
[1768328052314,4.72619563,3189.2,3187.8,3.13694014]
[1768328052315,4.72619563,3188.9,3187.8,2.59306515]
[1768328052594,2.6392788,3188.8,3187.7,0.246]
[1768328052760,2.60007911,3188.8,3187.7,0.246]
[1768328052963,0.246,3188.9,3188.0,2.59306515]
[1768328053179,6.27195182,3188.8,3188.0,2.59306515]
[1768328054016,0.002,3188.5,3188.0,2.59306515]
[1768328054691,0.002,3188.5,3187.6,0.246]
[1768328055065,0.002,3188.5,3187.4,5.73040225]
[1768328055322,0.002,3188.5,3187.4,2.59306515]
[1768328055631,0.04120338,3188.5,3187.2,5.73055317]
[1768328055934,0.04120338,3188.5,3187.1,0.1636]
[1768328055935,2.60207911,3188.5,3187.1,0.1636]
[1768328056125,2.75282172,3188.3,3187.1,0.4096]
[1768328056937,2.79202756,3188.3,3186.6,2.6422575]
[1768328057086,2.79202756,3188.3,3186.1,0.28983133]
[1768328057298,2.75282172,3187.9,3186.1,0.0008024]
[1768328057512,2.75282172,3187.7,3186.1,0.0008024]
[1768328058022,2.75282172,3187.7,3186.1,3.13942448]
[1768328058589,2.75282172,3187.7,3186.1,0.0008024]
[1768328058803,2.75282172,3187.7,3186.1,3.13940847]
[1768328059092,2.75282172,3187.5,3186.1,0.0008024]
[1768328059286,2.75282172,3187.3,3186.1,0.0008024]
[1768328059501,2.75282172,3187.1,3186.1,0.0008024]
[1768328059701,2.75282172,3187.1,3186.1,0.01490822]
[1768328059906,2.75282172,3187.3,3186.1,0.0008024]
[1768328061232,6.2751004,3187.2,3186.1,0.0008024]
[1768328061415,2.75282172,3187.1,3186.1,0.0008024]
[1768328061938,2.75282172,3186.9,3186.1,0.0008024]
[1768328063429,6.27588802,3186.8,3186.1,0.0008024]
[1768328064507,9.02870974,3186.8,3186.1,0.0008024]
[1768328065210,8.86510974,3186.8,3186.1,0.0008024]
[1768328065834,8.86510974,3186.8,3186.4,0.001]
[1768328066126,0.002,3186.6,3186.4,0.001]
[1768328067642,0.002,3186.9,3186.4,0.001]
[1768328068534,0.002,3186.9,3186.4,2.6432575]
[1768328069000,2.75482172,3186.9,3186.2,3.13853493]
[1768328069322,2.75482172,3186.9,3184.3,1.53355355]
[1768328069323,2.75282172,3185.7,3184.3,1.53355355]
[1768328069651,0.246,3185.7,3184.2,2.31391071]
[1768328069823,0.246,3186.0,3184.5,2.6422575]
[1768328070199,6.27766094,3185.9,3184.5,2.65639995]
[1768328070940,6.27766094,3185.9,3184.6,2.8882575]
[1768328071550,9.41649141,3185.9,3184.6,2.8882575]
[1768328072098,6.27766094,3185.9,3184.6,2.8882575]
[1768328073642,3.13863343,3186.1,3184.8,2.6422575]
[1768328073840,6.27726686,3186.1,3184.8,2.6422575]
[1768328074210,6.2767729,3186.4,3184.9,2.65639414]
[1768328074623,6.2767729,3186.4,3184.9,2.6422575]
[1768328075346,6.2767729,3186.4,3185.1,2.81720369]
[1768328075542,6.2767729,3186.4,3185.2,0.246]
[1768328076847,2.70290609,3186.4,3185.2,0.246]
[1768328078238,6.27687286,3186.3,3185.1,2.81720369]
[1768328078462,6.27687286,3186.3,3185.2,0.246]
[1768328078636,6.27687286,3186.3,3185.3,0.30632037]
[1768328078974,6.27687286,3186.3,3185.3,3.12352406]
[1768328079962,3.13843643,3186.3,3185.5,2.81720369]
[1768328080334,0.0008024,3186.5,3185.5,2.81720369]
[1768328081061,2.70290609,3186.4,3185.3,0.30632037]
[1768328081240,0.0008024,3186.5,3185.3,3.12352406]
[1768328081436,0.0008024,3186.5,3185.4,3.1541561]
[1768328081630,0.0008024,3186.5,3185.5,2.83132757]
[1768328082464,0.0008024,3186.5,3185.6,2.81720369]
[1768328082666,0.0008024,3186.5,3185.8,2.81720369]
[1768328082834,0.0008024,3186.5,3185.7,0.26012097]
[1768328083034,0.0008024,3186.5,3185.7,0.86765384]
[1768328083234,0.0008024,3186.5,3185.7,0.246]
[1768328083465,0.0008024,3186.5,3185.7,0.26011996]
[1768328084560,0.0008024,3186.5,3185.5,2.81720369]
[1768328084935,2.70370849,3186.5,3185.4,0.33695241]
[1768328085155,2.70370849,3186.5,3185.5,0.246]
[1768328085340,0.0008024,3186.5,3185.5,3.06320369]
[1768328085546,0.0008024,3186.5,3185.5,3.4032193]
[1768328087662,3.13794401,3186.8,3185.5,3.4032193]
[1768328087838,0.002,3186.9,3186.2,2.81720369]
[1768328088032,0.002,3186.9,3186.3,3.06320369]
[1768328088373,0.002,3186.9,3186.4,0.30632037]
[1768328089439,0.002,3186.9,3186.3,0.246]
[1768328091542,0.002,3186.6,3186.3,0.246]
[1768328092069,0.002,3186.6,3186.3,3.06320369]
[1768328094239,0.002,3186.6,3186.3,0.246]
[1768328095757,0.002,3186.6,3186.1,3.13937005]
[1768328096065,0.002,3186.9,3186.6,2.81720369]
[1768328096266,8.97691614,3187.8,3186.6,2.81720369]
[1768328097175,8.97691614,3187.8,3186.7,0.246]
[1768328098076,6.27401005,3187.8,3186.8,3.06320369]
[1768328098373,2.70290609,3188.1,3186.8,3.06320369]
[1768328098550,3.13676286,3188.0,3187.0,2.81720369]
[1768328099348,6.27352572,3188.0,3187.0,2.81720369]
[1768328099585,3.13670302,3188.1,3187.1,2.81720369]
[1768328100580,6.27514738,3188.2,3187.1,2.81720369]
[1768328101076,8.97805347,3188.2,3187.1,2.81720369]
[1768328101250,8.97805347,3188.2,3187.2,0.59548952]
[1768328101447,2.70290609,3188.1,3187.2,0.59548952]
[1768328101746,2.70290609,3188.1,3186.9,0.62153321]
[1768328101747,2.70290609,3187.9,3187.0,0.246]
[1768328102170,5.84147978,3188.2,3187.1,2.83129019]
[1768328102366,2.70490609,3188.2,3187.1,9.0924889]
[1768328102682,2.70490609,3188.2,3187.2,0.01408202]
[1768328102977,2.70490609,3188.2,3187.3,0.91065709]
[1768328102978,5.84151378,3188.2,3187.3,0.91065709]
[1768328103464,0.002,3187.9,3187.3,0.246]
[1768328103669,0.002,3187.9,3186.0,0.16]
[1768328103670,0.002,3187.9,3187.0,0.246]
[1768328103863,2.70490609,3187.9,3187.0,0.246]
[1768328104065,2.70490609,3187.9,3187.1,0.0140865]
[1768328104266,2.70490609,3187.9,3187.1,3.15171817]
[1768328104481,0.002,3187.9,3187.2,0.33977182]
[1768328104679,0.002,3187.9,3187.3,0.0140836]
[1768328104977,0.002,3187.9,3187.3,3.15151704]
[1768328105548,0.002,3188.2,3187.3,6.2748852]
[1768328105775,0.002,3188.2,3187.4,0.01407912]
[1768328105979,0.002,3188.2,3187.5,0.87489643]
[1768328107787,0.002,3188.2,3187.5,0.246]
[1768328110302,0.002,3188.2,3187.6,0.01407622]
[1768328110476,0.002,3188.2,3187.5,0.246]
[1768328111196,0.002,3188.2,3187.2,0.33977182]
[1768328111366,2.84368334,3188.2,3187.2,0.33977182]
[1768328111612,2.84368334,3188.2,3187.2,0.58577182]
[1768328112195,2.84168334,3188.0,3187.2,0.33977182]
[1768328112406,2.84168334,3188.0,3187.0,3.85]
[1768328112569,0.248,3188.2,3187.3,0.246]
[1768328112570,0.002,3188.2,3187.3,0.246]
[1768328113105,3.13857178,3188.2,3187.3,3.00042632]
[1768328113270,0.002,3188.2,3187.3,3.00042632]
[1768328113600,0.002,3188.2,3187.4,0.92755264]
[1768328114097,0.002,3188.2,3187.4,6.81930693]
[1768328115222,0.002,3188.2,3187.4,0.92755264]
[1768328115426,0.002,3188.2,3187.3,0.246]
[1768328115787,2.84368334,3188.2,3187.5,0.001]
[1768328116089,0.002,3187.9,3187.5,0.001]
[1768328116308,0.002,3187.9,3187.5,0.01508057]
[1768328116500,0.002,3187.9,3187.5,0.001]
[1768328117607,0.002,3187.9,3187.5,0.01507968]
[1768328118142,0.002,3187.9,3187.5,0.001]
[1768328120794,2.75895613,3187.9,3187.5,0.001]
[1768328122345,0.002,3187.9,3187.5,0.001]
[1768328122538,0.002,3187.9,3187.5,2.62683752]
[1768328122695,2.75895613,3188.2,3187.7,3.13700979]
[1768328123025,0.002,3188.2,3187.8,0.3151089]
[1768328123797,0.002,3188.2,3187.5,2.62683752]
[1768328124243,0.002,3188.2,3187.5,2.87283752]
[1768328125535,0.002,3188.2,3187.5,2.62683752]
[1768328125711,0.002,3188.2,3187.5,2.87283752]
[1768328126397,0.002,3188.2,3187.5,0.247]
[1768328126645,0.002,3188.2,3187.5,2.87283752]
[1768328126816,0.002,3188.5,3187.6,2.91312127]
[1768328127011,0.002,3188.5,3187.7,3.13705806]
[1768328127517,0.002,3187.9,3187.7,3.13705806]
[1768328127830,0.002,3188.2,3187.7,3.13705806]
[1768328128028,0.002,3188.5,3187.7,3.13705806]
[1768328128198,0.002,3188.5,3187.8,2.9682717]
[1768328128404,0.002,3188.5,3187.9,0.246]
[1768328128605,0.002,3188.5,3187.9,2.87183752]
[1768328129218,0.002,3188.5,3187.9,0.246]
[1768328129702,0.002,3188.5,3187.9,3.38279239]
[1768328130008,0.002,3188.5,3188.0,0.37252266]
[1768328130605,0.002,3188.5,3187.9,0.246]
[1768328132337,2.75895613,3188.5,3187.8,0.34243418]
[1768328132536,2.75895613,3188.5,3187.6,3.38309911]
[1768328133133,2.75895613,3188.5,3187.7,3.13703585]
[1768328134634,0.002,3188.5,3187.7,5.76287337]
[1768328134822,0.002,3188.5,3187.7,3.13703585]
[1768328135016,0.002,3188.5,3187.6,13.07045147]
[1768328135216,0.002,3188.5,3187.7,1.30714515]
[1768328135413,0.002,3188.5,3187.7,7.14435431]
[1768328135625,0.002,3188.5,3187.8,2.70018379]
[1768328135830,0.002,3188.5,3187.7,1.30714515]
[1768328136339,2.64051676,3188.5,3187.7,1.30714515]
[1768328136506,2.59931338,3188.3,3187.6,3.85]
[1768328136902,2.59931338,3188.1,3187.5,0.001]
[1768328137244,2.59931338,3188.1,3186.6,0.247]
[1768328137407,2.59931338,3187.7,3186.7,0.29471838]
[1768328137833,2.84531338,3187.7,3186.7,0.29471838]
[1768328138026,2.84531338,3187.7,3186.6,0.247]
[1768328138938,2.84531338,3187.7,3186.6,3.3850715]
[1768328139137,2.84531338,3187.7,3186.6,0.001]
[1768328139659,2.59931338,3187.5,3186.6,0.001]
[1768328139945,2.59931338,3187.5,3186.9,0.001]
[1768328141684,3.13717831,3187.6,3186.9,0.001]
[1768328142139,3.38320684,3187.6,3186.9,0.001]
[1768328143440,6.52041368,3187.6,3186.9,0.001]
[1768328143660,2.59931338,3187.3,3186.9,0.001]
[1768328145459,3.13735332,3187.4,3186.9,0.001]
[1768328145760,6.2745098,3187.5,3186.9,0.001]
[1768328146066,8.87382318,3187.5,3186.9,0.001]
[1768328146270,2.59931338,3187.4,3186.9,0.001]
[1768328146716,2.59931338,3187.4,3186.6,0.001]
[1768328147215,3.3832549,3187.5,3186.6,2.70118379]
[1768328147416,6.5205098,3187.5,3186.6,2.70118379]
[1768328147837,2.59931338,3187.4,3186.6,0.001]
[1768328149954,3.13745176,3187.3,3186.6,0.001]
[1768328150560,5.73671251,3187.4,3186.6,0.001]
[1768328150754,3.13717634,3187.6,3186.6,2.70118379]
[1768328150755,3.13723157,3187.6,3186.6,2.70118379]
[1768328150926,2.84531338,3187.7,3186.7,0.28421372]
[1768328151250,0.246,3188.1,3186.9,2.70018379]
[1768328151777,0.246,3188.1,3186.9,2.70118379]
[1768328152053,3.38273332,3188.1,3187.1,2.70018379]
[1768328152481,6.51946664,3188.1,3187.1,2.70018379]
[1768328152659,6.51946664,3188.1,3187.2,0.58379309]
[1768328152971,3.13673332,3188.1,3187.2,3.28397688]
[1768328153157,3.13659471,3188.2,3187.2,3.28397688]
[1768328154029,3.13646771,3188.3,3187.3,5.83763555]
[1768328154247,3.38240788,3188.4,3187.4,2.70018379]
[1768328154442,0.03920584,3188.3,3187.5,2.97020217]
[1768328154647,2.59931338,3188.3,3186.9,3.851]
[1768328156254,2.59931338,3188.1,3186.9,3.851]
[1768328156562,3.13656608,3188.2,3187.0,2.71426972]
[1768328156782,0.246,3188.1,3187.2,2.70018379]
[1768328157355,0.246,3188.1,3187.0,2.70018379]
[1768328158684,6.27352572,3188.0,3187.0,2.70018379]
[1768328159382,5.73607624,3188.0,3187.0,5.83790865]
[1768328159583,2.59931338,3188.0,3187.1,0.01408549]
[1768328159752,3.38268693,3188.1,3187.2,0.58519941]
[1768328160180,6.51937386,3188.1,3187.2,0.58519941]
[1768328160385,2.59931338,3188.0,3187.2,0.58519941]
[1768328160881,5.73617463,3187.9,3187.2,0.58519941]
[1768328161086,2.59931338,3187.9,3187.2,0.58519941]
[1768328161272,2.59931338,3187.9,3187.3,0.37228169]
[1768328161478,2.59931338,3187.9,3186.9,0.001]
[1768328162465,6.27354506,3188.0,3186.9,5.83895414]
[1768328162780,8.87285844,3188.0,3186.9,5.83902291]
[1768328163375,8.87285844,3188.0,3186.9,5.83902639]
[1768328163768,0.002,3187.8,3186.9,0.001]
[1768328163992,0.002,3187.8,3187.0,3.0140746]
[1768328165068,3.13895965,3187.8,3187.0,3.0140746]
[1768328167196,3.13895965,3187.8,3187.0,0.32797876]
[1768328168017,0.002,3187.8,3187.0,3.46571034]
[1768328168289,0.002,3187.8,3187.0,3.46572406]
[1768328168457,0.002,3187.8,3187.1,0.61640379]
[1768328168662,0.002,3187.8,3187.2,0.01408606]
[1768328170195,0.002,3187.8,3187.1,0.61640379]
[1768328170502,2.75071558,3187.8,3187.1,0.61640379]
[1768328171701,5.88768278,3187.8,3187.1,0.61640379]
[1768328174428,2.74871558,3187.7,3187.0,0.31389081]
[1768328174730,2.74871558,3187.7,3186.9,3.13878545]
[1768328175546,2.74871558,3187.7,3186.9,0.001]
[1768328175735,6.2759344,3187.8,3186.6,0.001]
[1768328175736,2.74871558,3187.1,3186.6,0.001]
[1768328176034,2.74720149,3187.1,3186.6,0.001]
[1768328176646,0.246,3187.3,3186.6,0.001]
[1768328177307,2.83608326,3187.3,3186.6,0.001]
[1768328177834,2.59008326,3186.8,3186.6,0.001]
[1768328178043,2.59008326,3186.8,3186.1,0.00080248]
[1768328178044,2.83608326,3186.8,3186.1,0.00080248]
[1768328178551,2.59008326,3186.5,3186.1,0.00080248]
[1768328179204,0.00080248,3186.5,3185.4,2.65896931]
[1768328179469,0.00080248,3186.5,3185.5,0.60443325]
[1768328179681,6.27728136,3186.5,3185.5,0.60443325]
[1768328179982,8.86736462,3186.5,3185.4,2.65896931]
[1768328180368,2.59008326,3186.4,3185.4,2.65896931]
[1768328180602,0.246,3186.3,3185.1,5.79950438]
[1768328180776,0.246,3186.3,3185.2,2.65896931]
[1768328181316,2.83608326,3186.3,3185.2,2.65896931]
[1768328181462,2.83608326,3186.3,3185.3,3.4299661]
[1768328181659,2.83608326,3186.3,3185.1,0.247]
[1768328181894,2.59008326,3186.1,3185.1,0.247]
[1768328182794,2.59008326,3186.1,3185.1,3.38652742]
[1768328182959,2.59008326,3186.1,3185.2,0.01413228]
[1768328183502,2.59008326,3186.1,3185.1,6.04549673]
[1768328183705,3.13853493,3186.2,3185.2,3.27765126]
[1768328183905,6.27706986,3186.2,3185.2,3.27765126]
[1768328184402,6.27706986,3186.2,3185.2,2.67310159]
[1768328184781,8.86715312,3186.2,3185.2,2.67310159]
[1768328185283,8.86715312,3186.2,3185.2,2.65896931]
[1768328186003,8.86715312,3186.2,3185.3,0.01412981]
[1768328186195,5.72861819,3186.2,3185.3,0.01412981]
[1768328186395,5.72861819,3186.2,3185.2,2.65896931]
[1768328186396,8.86715312,3186.2,3185.2,2.65896931]
[1768328186597,8.86715312,3186.2,3185.2,2.92496624]
[1768328187792,8.86715312,3186.2,3185.5,0.001]
[1768328187994,8.86915312,3186.2,3185.5,0.001]
[1768328188507,2.59008326,3186.1,3185.5,0.001]
[1768328189678,3.13873195,3186.0,3185.5,0.001]
[1768328191007,6.2774639,3186.0,3185.5,0.001]
[1768328191306,3.13873195,3186.0,3185.5,0.001]
[1768328191780,6.27906986,3186.2,3185.5,0.001]
[1768328191980,2.59008326,3186.1,3185.5,0.001]
[1768328192684,6.27906986,3186.2,3185.5,0.001]
[1768328193709,8.86915312,3186.2,3185.5,0.001]
[1768328194407,2.59008326,3186.1,3185.5,0.001]
[1768328196013,5.79014302,3186.2,3185.5,0.001]
[1768328196217,0.246,3186.1,3185.5,0.001]
[1768328196580,2.64960809,3186.0,3185.5,0.001]
[1768328198223,3.13883047,3185.9,3185.5,0.001]
[1768328198793,5.78835613,3186.0,3185.5,0.001]
[1768328198994,3.13874804,3186.0,3185.5,0.001]
[1768328199521,3.13874804,3186.0,3185.8,0.001]
[1768328201801,0.002,3186.2,3185.8,0.001]
[1768328202221,3.14055082,3186.2,3185.8,0.001]
[1768328202609,0.002,3186.2,3185.8,0.001]
[1768328202812,0.002,3186.2,3185.8,2.69257528]
[1768328202996,0.00280248,3186.5,3185.9,3.13883047]
[1768328203198,3.13764864,3187.1,3186.0,2.44679571]
[1768328203409,2.64960809,3187.0,3186.1,0.00080256]
[1768328203906,2.64960809,3187.0,3186.1,2.44759827]
[1768328204094,3.13764864,3187.1,3186.2,2.69155554]
[1768328204428,3.13764864,3187.1,3186.2,0.24475983]
[1768328204429,2.64960809,3187.0,3186.2,0.24475983]
[1768328204606,2.64960809,3187.0,3186.1,0.00080256]
[1768328204808,3.13764864,3187.1,3186.1,2.44759827]
[1768328205208,2.89560809,3187.3,3186.2,2.44679571]
[1768328206012,3.13735332,3187.4,3186.2,2.44679571]
[1768328206334,3.13735332,3187.4,3186.4,2.44679571]
[1768328206634,5.78696141,3187.4,3186.5,3.18882007]
[1768328206929,5.78696141,3187.4,3186.5,2.44679571]
[1768328207225,8.92431473,3187.4,3186.5,2.44679571]
[1768328207632,8.92431473,3187.4,3186.3,5.83117539]
[1768328208633,8.92431473,3187.4,3186.4,3.1383156]
[1768328208832,5.78696141,3187.4,3186.4,5.58511131]
[1768328209035,8.92431473,3187.4,3186.5,0.58311113]
[1768328209351,8.92431473,3187.4,3186.5,3.02990684]
[1768328210030,2.68882623,3187.3,3186.5,0.58311113]
[1768328210235,2.64960809,3187.3,3186.2,2.69279571]
[1768328210419,2.64960809,3187.3,3186.3,3.13843155]
[1768328210734,2.64960809,3187.3,3186.3,5.58522726]
[1768328211234,0.002,3187.1,3186.2,2.44679571]
[1768328211434,0.002,3187.1,3186.1,3.85080256]
[1768328211435,0.002,3187.1,3186.4,2.44679571]
[1768328211636,0.002,3187.4,3186.9,2.44679571]
[1768328212710,0.002,3187.8,3187.3,2.44679571]
[1768328213835,0.002,3188.1,3187.7,2.44679571]
[1768328214709,0.002,3188.1,3187.4,2.55279571]
[1768328216008,0.002,3188.1,3187.5,2.44679571]
[1768328216339,0.002,3188.1,3187.6,0.56901321]
[1768328216746,0.002,3188.1,3187.6,3.01580892]
[1768328217514,0.002,3188.1,3187.6,2.44679571]
[1768328218213,0.002,3188.1,3187.4,2.44679571]
[1768328218439,0.002,3188.1,3187.2,2.44679571]
[1768328219038,2.65160809,3188.1,3187.2,2.44679571]
[1768328219421,2.89760809,3188.1,3187.1,0.246]
[1768328219649,2.64960809,3187.9,3186.9,2.44679571]
[1768328219834,2.89760809,3188.1,3186.9,2.44679571]
[1768328220149,6.27352572,3188.0,3186.9,2.44679571]
[1768328220445,2.64960809,3187.9,3186.9,2.44679571]
[1768328222251,2.64960809,3187.7,3186.7,3.38403921]
[1768328222451,2.64960809,3187.7,3186.8,0.33840392]
[1768328223419,0.246,3187.6,3186.8,0.33940392]
[1768328223631,0.002,3187.5,3186.8,0.33940392]
[1768328224450,3.1392549,3187.5,3186.8,0.33940392]
[1768328225354,3.1392549,3187.5,3186.8,0.001]
[1768328225559,8.75898999,3187.5,3186.8,0.001]
[1768328226048,5.62173509,3187.5,3186.8,0.001]
[1768328226249,0.002,3187.5,3186.8,0.001]
[1768328226756,0.002,3187.5,3186.8,2.6063791]
[1768328226924,0.002,3187.5,3186.9,0.26063791]
[1768328227125,0.002,3187.5,3187.0,2.61947109]
[1768328228251,0.002,3187.5,3187.1,2.6053791]
[1768328228627,0.002,3187.8,3187.2,2.6053791]
[1768328229438,0.002,3187.8,3187.0,5.74310173]
[1768328229749,2.48448019,3187.8,3187.1,0.91415484]
[1768328229943,2.48448019,3187.8,3186.9,0.26063791]
[1768328230332,0.002,3187.8,3186.9,2.86601701]
[1768328230733,2.48448019,3187.8,3186.9,2.86601701]
[1768328231450,2.48448019,3187.8,3186.9,0.26063791]
[1768328231655,2.48448019,3187.8,3186.8,4.097]
[1768328231892,2.48248019,3187.6,3186.8,4.097]
[1768328232023,2.48248019,3187.6,3186.8,3.851]
[1768328232219,2.48248019,3187.4,3186.8,3.851]
[1768328232423,8.75698999,3187.5,3186.8,3.851]
[1768328232848,2.48248019,3187.4,3186.8,3.851]
[1768328233050,2.48248019,3187.4,3186.8,0.001]
[1768328233249,3.1372549,3187.5,3186.8,2.6063791]
[1768328233449,0.246,3187.4,3186.8,2.6063791]
[1768328234433,3.13745176,3187.3,3186.8,2.6063791]
[1768328235342,3.13745176,3187.3,3186.8,0.001]
[1768328235547,3.13745176,3187.3,3187.1,0.001]
[1768328235961,0.002,3187.8,3187.1,2.6063791]
[1768328236151,0.002,3187.8,3187.7,0.16360405]
[1768328236362,0.002,3188.5,3187.7,0.16360405]
[1768328236655,0.002,3188.5,3187.5,2.41297576]
[1768328236656,3.1365211,3188.3,3187.5,2.41297576]
[1768328236863,3.1365852,3188.2,3187.5,2.41297576]
[1768328237063,3.13868777,3188.1,3187.5,2.41297576]
[1768328237636,0.002,3188.1,3187.5,2.41297576]
[1768328237840,0.002,3188.1,3187.6,0.24129758]
[1768328241376,2.38883772,3188.1,3187.2,0.7579827]
[1768328241573,2.38883772,3188.1,3187.2,3.13749922]
[1768328241875,2.38883772,3188.1,3187.2,2.41297576]
[1768328242079,0.002,3188.1,3187.5,3.13724462]
[1768328242278,0.002,3188.1,3187.7,2.41297576]
[1768328243654,0.002,3188.1,3187.7,2.26297576]
[1768328246956,0.23163959,3188.3,3187.7,2.80299726]
[1768328247283,0.002,3187.8,3187.7,2.80299726]
[1768328247495,0.002,3188.5,3187.8,2.41297576]
[1768328247696,0.002,3188.5,3188.0,2.41297576]
[1768328248607,0.002,3188.5,3187.8,2.41297576]
[1768328248959,2.38883772,3188.5,3187.7,6.27411612]
[1768328249588,0.002,3188.5,3187.8,2.41297576]
[1768328249787,0.002,3188.5,3187.9,3.28168495]
[1768328250385,0.002,3188.5,3188.0,2.42704314]
[1768328250592,0.002,3188.5,3188.1,2.41297576]
[1768328251285,0.002,3188.5,3187.9,3.28168495]
[1768328251491,0.002,3188.5,3187.8,5.54988056]
[1768328251656,0.002,3188.5,3187.8,2.41297576]
[1768328252297,0.002,3188.5,3187.8,5.54988249]
[1768328252790,0.002,3188.5,3187.8,2.41297576]
[1768328253293,0.002,3188.5,3187.8,5.54991295]
[1768328253696,0.002,3188.5,3187.9,0.5549913]
[1768328254594,2.38883772,3188.5,3187.6,2.41297576]
[1768328254783,2.42604233,3188.4,3187.5,0.246]
[1768328254982,2.27879868,3188.4,3187.5,0.246]
[1768328255185,2.30394171,3188.4,3187.5,0.246]
[1768328255367,5.4810558,3188.3,3187.4,3.13729557]
[1768328255696,2.34458809,3188.2,3187.4,3.13729557]
[1768328255994,2.34458809,3188.2,3187.3,5.86352491]
[1768328256199,2.34458809,3188.2,3187.3,2.72611958]
[1768328256404,3.13640859,3188.4,3187.6,2.48011958]
[1768328256703,5.48287087,3188.5,3187.6,3.20332501]
[1768328257074,8.61915365,3188.5,3187.6,3.20332501]
[1768328257276,2.34458809,3188.4,3187.6,0.72320543]
[1768328257602,3.13646771,3188.3,3187.6,0.72320543]
[1768328257770,8.61735645,3188.4,3187.6,0.72320543]
[1768328257976,2.34458809,3188.3,3187.6,0.72320543]
[1768328258284,5.48097227,3188.4,3187.6,3.20332501]
[1768328258486,8.61735645,3188.4,3187.6,3.20332501]
[1768328258690,0.002,3188.2,3187.6,3.20332501]
[1768328259170,0.002,3188.2,3187.7,2.48011958]
[1768328259376,0.002,3188.2,3187.7,2.80045208]
[1768328259613,0.002,3188.2,3187.7,5.93750015]
[1768328259810,0.002,3188.2,3187.7,2.80045208]
[1768328260612,0.002,3188.2,3187.8,2.48011958]
[1768328260910,0.002,3188.5,3187.7,3.45736066]
[1768328260911,0.002,3188.8,3187.9,0.246]
[1768328261082,0.002,3188.8,3188.0,4.72056118]
[1768328261491,0.002,3188.8,3188.1,2.48011958]
[1768328261686,0.002,3188.8,3188.2,3.13656608]
[1768328262077,0.002,3188.8,3188.2,5.61668566]
[1768328262414,0.002,3188.8,3188.3,0.875333]
[1768328263315,0.002,3188.8,3188.2,5.61668566]
[1768328264311,0.002,3188.8,3188.2,5.61662896]
[1768328264677,0.002,3188.8,3188.3,2.48011958]
[1768328266295,0.002,3188.8,3188.4,2.48011958]
[1768328266700,0.002,3188.8,3188.2,2.48011958]
[1768328266926,0.002,3188.8,3188.3,0.56166916]
[1768328267300,0.002,3188.8,3188.1,2.48011958]
[1768328267506,2.34458809,3188.7,3187.9,0.68404187]
[1768328267679,2.34458809,3188.7,3187.7,0.5663325]
[1768328267878,2.34458809,3188.7,3187.4,2.48011958]
[1768328268078,6.27273866,3188.4,3187.6,2.48011958]
[1768328268299,3.13636933,3188.4,3187.6,2.48011958]
[1768328268499,3.13624074,3188.6,3187.7,2.48011958]
[1768328268701,3.13624074,3188.6,3187.9,2.48011958]
[1768328268912,8.61706957,3188.6,3187.6,7.20068076]
[1768328269314,2.34458809,3188.5,3187.6,7.20068076]
[1768328269890,6.27248148,3188.6,3187.7,2.48011958]
[1768328270097,2.34458809,3188.5,3187.5,10.33785568]
[1768328270289,6.27248148,3188.6,3187.6,2.48011958]
[1768328270495,6.27248148,3188.6,3187.9,0.001]
[1768328271009,8.61706957,3188.6,3187.9,0.001]
[1768328271604,2.34458809,3188.5,3187.9,0.001]